fUST/lending_fUST_20260117
["ID","MTS","AMOUNT","RATE_DAILY","PERIOD"]
[402311001,1768653097669,-500.0,0.00018082,3]
[402311002,1768653097683,-500.0,0.00018082,3]
[402311003,1768653097699,-500.0,0.00018082,3]
[402311004,1768653097713,-847.18,0.00018082,3]
[402311005,1768653097730,-500.0,0.00018082,3]
[402311006,1768653097745,-500.0,0.00018082,3]
[402311007,1768653097759,-1000.0,0.00018082,2]
[402311008,1768653097774,-834.37,0.00018082,3]
[402311009,1768653097788,-500.0,0.00018082,3]
[402311010,1768653097803,-500.0,0.00018082,3]
[402311011,1768653097817,-500.0,0.00018082,3]
[402311012,1768653097832,-1719.9,0.00018082,3]
[402311013,1768653097845,-618.91,0.00018082,3]
[402311014,1768653097860,-771.05,0.00018082,3]
[402311015,1768653097875,-562.34469649,0.00018082,3]
[402311016,1768653097889,-1140.43,0.00018082,3]
[402311017,1768653097903,-500.0,0.00018082,3]
[402311018,1768653097918,-500.0,0.00018082,3]
[402311019,1768653097932,-514.45,0.00018082,3]
[402311020,1768653097949,-523.35,0.00018082,3]
[402311021,1768653097963,-500.0,0.00018082,3]
[402311022,1768653097988,-500.0,0.00018082,3]
[402311023,1768653098013,-1709.81,0.00018082,3]
[402311024,1768653098038,-500.0,0.00018082,3]
[402311025,1768653098057,-1132.82,0.00018082,3]
[402311026,1768653098077,-1287.57,0.00018082,3]
[402311027,1768653098095,-500.0,0.00018082,3]
[402311028,1768653098112,-500.0,0.00018082,3]
[402311029,1768653098129,-500.0,0.00018082,3]
[402311030,1768653098145,-1892.19,0.00018082,3]
[402311031,1768653098161,-563.8,0.00018082,3]
[402311032,1768653098177,-1294.45,0.00018082,3]
[402311033,1768653098193,-500.0,0.00018082,3]
[402311034,1768653098209,-694.6,0.00018082,3]
[402311035,1768653098226,-817.66,0.00018082,3]
[402311036,1768653098242,-500.0,0.00018082,3]
[402311037,1768653098258,-500.0,0.00018082,3]
[402311038,1768653098273,-1517.43,0.00018082,3]
[402311039,1768653098288,-931.54,0.00018082,3]
[402311040,1768653098304,-500.0,0.00018082,3]
[402311041,1768653098319,-1075.67,0.00018082,3]
[402311042,1768653098335,-1255.88,0.00018082,3]
[402311043,1768653098349,-1451.63,0.00018082,3]
[402311044,1768653098365,-730.33,0.00018082,3]
[402311045,1768653098380,-694.92,0.00018082,3]
[402311046,1768653098397,-1054.42,0.00018082,3]
[402311047,1768653098636,-500.0,0.00018082,3]
[402311048,1768653098775,-500.0,0.00018082,3]
[402311049,1768653098785,-500.0,0.00018082,3]
[402311050,1768653098795,-500.0,0.00018082,3]
[402311051,1768653098805,-2132.97,0.00018082,3]
[402311052,1768653098815,-500.0,0.00018082,3]
[402311053,1768653098825,-633.14,0.00018082,3]
[402311054,1768653098835,-700.32,0.00018082,3]
[402311055,1768653098844,-500.0,0.00018082,3]
[402311056,1768653098854,-588.41,0.00018082,3]
[402311057,1768653098864,-1559.59,0.00018082,3]
[402311058,1768653098874,-1366.17,0.00018082,3]
[402311059,1768653098884,-1199.96,0.00018082,3]
[402311060,1768653098894,-1044.14,0.00018082,3]
[402311061,1768653098904,-1102.58,0.00018082,3]
[402311062,1768653098914,-500.0,0.00018082,3]
[402311063,1768653098924,-614.82090661,0.00018082,3]
[402311064,1768653098935,-1108.81,0.00018082,3]
[402311065,1768653098945,-1412.19,0.00018082,3]
[402311066,1768653098955,-2136.32,0.00018082,3]
[402311067,1768653098965,-535.22,0.00018082,3]
[402311068,1768653098975,-500.0,0.00018082,3]
[402311069,1768653098984,-929.98,0.00018082,3]
[402311070,1768653098994,-500.0,0.00018082,3]
[402311071,1768653099003,-913.11,0.00018082,3]
[402311072,1768653099012,-2020.66,0.00018082,3]
[402311073,1768653099021,-686.85,0.00018082,3]
[402311074,1768653099031,-1717.32,0.00018082,3]
[402311075,1768653099040,-272.37095351,0.00018082,3]
[402311076,1768653099050,-1456.0,0.00018082,3]
[402311077,1768653099059,-980.65,0.00018082,3]
[402311078,1768653099069,-577.36,0.00018082,3]
[402311079,1768653099078,-1622.28,0.00018082,3]
[402311080,1768653099088,-500.0,0.00018082,3]
[402311081,1768653099097,-500.0,0.00018082,3]
[402311082,1768653099107,-500.0,0.00018082,3]
[402311083,1768653099117,-500.0,0.00018082,3]
[402311084,1768653099126,-500.0,0.00018082,3]
[402311085,1768653099136,-500.0,0.00018082,3]
[402311086,1768653099146,-500.0,0.00018082,3]
[402311087,1768653099156,-500.0,0.00018082,3]
[402311088,1768653099165,-500.0,0.00018082,3]
[402311089,1768653099175,-626.22,0.00018082,3]
[402311090,1768653099185,-500.0,0.00018082,3]
[402311091,1768653099195,-1431.76,0.00018082,3]
[402311092,1768653099205,-437.89239693,0.00018082,3]
[402311093,1768653099214,-939.73,0.00018082,3]
[402311094,1768653099224,-500.0,0.00018082,3]
[402311095,1768653099233,-567.25,0.00018082,3]
[402311096,1768653099243,-512.3,0.00018082,3]
[402311097,1768653099253,-1326.69,0.00018082,3]
[402311098,1768653099262,-1526.12,0.00018082,3]
[402311099,1768653099272,-500.0,0.00018082,3]
[402311100,1768653099282,-692.94,0.00018082,3]
[402311101,1768653099292,-1447.89,0.00018082,3]
[402311102,1768653099301,-2677.48,0.00018082,3]
[402311103,1768653099311,-1106.71,0.00018082,3]
[402311104,1768653099321,-500.0,0.00018082,3]
[402311105,1768653099331,-500.0,0.00018082,3]
[402311106,1768653099340,-618.83,0.00018082,3]
[402311107,1768653099350,-275.38497984,0.00018082,3]
[402311108,1768653099359,-500.0,0.00018082,3]
[402311109,1768653099369,-500.0,0.00018082,3]
[402311110,1768653099379,-500.0,0.00018082,3]
[402311111,1768653099389,-638.34,0.00018082,3]
[402311112,1768653099399,-500.0,0.00018082,3]
[402311113,1768653099409,-500.0,0.00018082,3]
[402311114,1768653099420,-503.22,0.00018082,3]
[402311115,1768653099431,-581.87,0.00018082,3]
[402311116,1768653099442,-500.0,0.00018082,3]
[402311117,1768653099451,-412.81460161,0.00018082,3]
[402311118,1768653099463,-722.98,0.00018082,3]
[402311119,1768653099472,-500.0,0.00018082,3]
[402311120,1768653099483,-645.09,0.00018082,3]
[402311121,1768653099493,-500.0,0.00018082,3]
[402311122,1768653099506,-863.18,0.00018082,3]
[402311123,1768653099517,-942.19,0.00018082,3]
[402311124,1768653099530,-500.0,0.00018082,3]
[402311125,1768653099540,-500.0,0.00018082,3]
[402311126,1768653099550,-1098.82,0.00018082,3]
[402311127,1768653099559,-500.0,0.00018082,3]
[402311128,1768653099569,-641.28,0.00018082,3]
[402311129,1768653099580,-500.0,0.00018082,3]
[402311130,1768653099591,-500.0,0.00018082,3]
[402311131,1768653099602,-500.0,0.00018082,3]
[402311132,1768653099615,-500.0,0.00018082,3]
[402311133,1768653099626,-1330.27,0.00018082,3]
[402311134,1768653099636,-722.95,0.00018082,3]
[402311135,1768653099645,-527.98947312,0.00018082,3]
[402311136,1768653099655,-500.0,0.00018082,3]
[402311137,1768653099665,-500.0,0.00018082,3]
[402311138,1768653099674,-500.0,0.00018082,3]
[402311139,1768653099685,-500.0,0.00018082,3]
[402311140,1768653099695,-500.0,0.00018082,3]
[402311141,1768653099705,-500.0,0.00018082,3]
[402311142,1768653099716,-1081.34,0.00018082,3]
[402311143,1768653099729,-604.11,0.00018082,3]
[402311144,1768653099739,-500.0,0.00018082,3]
[402311145,1768653099747,-784.27,0.00018082,3]
[402311146,1768653099756,-1786.2,0.00018082,3]
[402311147,1768653099764,-500.0,0.00018082,3]
[402311148,1768653099773,-500.0,0.00018082,3]
[402311149,1768653099783,-500.0,0.00018082,3]
[402311150,1768653099793,-515.88315406,0.00018082,3]
[402311151,1768653099803,-500.0,0.00018082,3]
[402311152,1768653099813,-693.3,0.00018082,3]
[402311153,1768653099824,-1628.03,0.00018082,3]
[402311154,1768653099834,-693.9,0.00018082,3]
[402311155,1768653099844,-523.8,0.00018082,3]
[402311156,1768653099854,-998.12,0.00018082,3]
[402311157,1768653099864,-782.18,0.00018082,3]
[402311158,1768653099873,-500.0,0.00018082,3]
[402311159,1768653099882,-500.0,0.00018082,3]
[402311160,1768653099892,-500.0,0.00018082,3]
[402311161,1768653099902,-501.51,0.00018082,3]
[402311162,1768653099911,-1075.34,0.00018082,3]
[402311163,1768653099921,-500.0,0.00018082,3]
[402311164,1768653099930,-500.0,0.00018082,3]
[402311165,1768653099940,-500.0,0.00018082,3]
[402311166,1768653099949,-2815.19,0.00018082,3]
[402311167,1768653099959,-500.0,0.00018082,3]
[402311168,1768653099969,-500.0,0.00018082,3]
[402311169,1768653099979,-500.0,0.00018082,3]
[402311170,1768653099988,-500.0,0.00018082,3]
[402311171,1768653099998,-500.0,0.00018082,3]
[402311172,1768653100007,-1439.17,0.00018082,3]
[402311173,1768653100017,-533.98,0.00018082,3]
[402311174,1768653100026,-1659.97,0.00018082,3]
[402311175,1768653100036,-500.0,0.00018082,3]
[402311176,1768653100045,-2433.28,0.00018082,3]
[402311177,1768653100055,-500.0,0.00018082,3]
[402311178,1768653100065,-578.09,0.00018082,3]
[402311179,1768653100075,-500.0,0.00018082,3]
[402311180,1768653100084,-659.07,0.00018082,3]
[402311181,1768653100094,-1851.83,0.00018082,3]
[402311182,1768653100104,-500.0,0.00018082,3]
[402311183,1768653100114,-275.02958199,0.00018082,3]
[402311184,1768653100123,-500.0,0.00018082,3]
[402311185,1768653100132,-875.55,0.00018082,3]
[402311186,1768653100142,-508.96,0.00018082,3]
[402311187,1768653100152,-8441.37,0.00018082,3]
[402311188,1768653100162,-500.0,0.00018082,3]
[402311189,1768653100172,-980.47,0.00018082,3]
[402311190,1768653100181,-601.82,0.00018082,3]
[402311191,1768653100191,-500.0,0.00018082,3]
[402311192,1768653100200,-500.0,0.00018082,3]
[402311193,1768653100210,-953.59,0.00018082,3]
[402311194,1768653100220,-500.0,0.00018082,3]
[402311195,1768653100232,-1106.34,0.00018082,3]
[402311196,1768653100243,-785.13,0.00018082,3]
[402311197,1768653100254,-733.19,0.00018082,3]
[402311198,1768653100264,-920.91,0.00018082,3]
[402311199,1768653100273,-1239.92,0.00018082,3]
[402311200,1768653100283,-1089.71,0.00018082,3]
[402311201,1768653100293,-976.59,0.00018082,3]
[402311202,1768653100302,-1186.93,0.00018082,3]
[402311203,1768653100312,-1777.27,0.00018082,3]
[402311204,1768653100321,-972.38,0.00018082,3]
[402311205,1768653100331,-500.0,0.00018082,3]
[402311206,1768653100341,-2039.45,0.00018082,3]
[402311207,1768653100350,-680.35,0.00018082,3]
[402311208,1768653100359,-1072.76,0.00018082,3]
[402311209,1768653100369,-500.0,0.00018082,3]
[402311210,1768653100379,-500.0,0.00018082,3]
[402311211,1768653100388,-500.0,0.00018082,3]
[402311212,1768653100397,-500.0,0.00018082,3]
[402311213,1768653100407,-1670.99,0.00018082,3]
[402311214,1768653100416,-964.42,0.00018082,3]
[402311215,1768653100426,-822.95,0.00018082,3]
[402311216,1768653100435,-643.39,0.00018082,3]
[402311217,1768653100445,-500.0,0.00018082,3]
[402311218,1768653100455,-1613.1,0.00018082,3]
[402311219,1768653100464,-500.0,0.00018082,3]
[402311220,1768653100473,-500.0,0.00018082,3]
[402311221,1768653100483,-500.0,0.00018082,3]
[402311222,1768653100493,-500.0,0.00018082,3]
[402311223,1768653100503,-500.0,0.00018082,3]
[402311224,1768653100514,-1112.08,0.00018082,3]
[402311225,1768653100526,-612.1,0.00018082,3]
[402311226,1768653100536,-500.0,0.00018082,3]
[402311227,1768653100546,-500.0,0.00018082,3]
[402311228,1768653100555,-1670.51,0.00018082,3]
[402311229,1768653100564,-1806.23,0.00018082,3]
[402311230,1768653100574,-500.0,0.00018082,3]
[402311231,1768653100584,-566.52,0.00018082,3]
[402311232,1768653100593,-500.0,0.00018082,3]
[402311233,1768653100603,-508.15,0.00018082,3]
[402311234,1768653100612,-1170.72,0.00018082,3]
[402311235,1768653100622,-974.97,0.00018082,3]
[402311236,1768653100631,-500.0,0.00018082,3]
[402311237,1768653100642,-626.5,0.00018082,3]
[402311238,1768653100651,-1530.01,0.00018082,3]
[402311239,1768653100660,-500.0,0.00018082,3]
[402311240,1768653100670,-500.0,0.00018082,3]
[402311241,1768653100679,-1016.59,0.00018082,3]
[402311242,1768653100688,-500.0,0.00018082,3]
[402311243,1768653100698,-500.0,0.00018082,3]
[402311244,1768653100708,-871.59,0.00018082,3]
[402311245,1768653100719,-570.88,0.00018082,3]
[402311246,1768653100730,-791.73,0.00018082,3]
[402311247,1768653100741,-849.02,0.00018082,3]
[402311248,1768653100751,-500.0,0.00018082,3]
[402311249,1768653100763,-500.0,0.00018082,3]
[402311250,1768653100772,-1482.88,0.00018082,3]
[402311251,1768653100782,-617.9,0.00018082,3]
[402311252,1768653100792,-500.0,0.00018082,3]
[402311253,1768653100802,-500.0,0.00018082,3]
[402311254,1768653100812,-500.0,0.00018082,3]
[402311255,1768653100822,-863.5,0.00018082,3]
[402311256,1768653100832,-500.0,0.00018082,3]
[402311257,1768653100842,-753.38,0.00018082,3]
[402311258,1768653100852,-500.0,0.00018082,3]
[402311259,1768653100862,-500.0,0.00018082,2]
[402311260,1768653100871,-500.0,0.00018082,3]
[402311261,1768653100881,-1911.71,0.00018082,3]
[402311262,1768653100890,-500.0,0.00018082,3]
[402311263,1768653100900,-14952.36,0.00018082,3]
[402311264,1768653100910,-500.0,0.00018082,3]
[402311265,1768653100920,-500.0,0.00018082,2]
[402311266,1768653100929,-500.0,0.00018082,3]
[402311267,1768653100940,-501.88,0.00018082,3]
[402311268,1768653100950,-500.0,0.00018082,3]
[402311269,1768653100960,-871.62,0.00018082,3]
[402311270,1768653100970,-500.0,0.00018082,3]
[402311271,1768653100979,-530.71,0.00018082,3]
[402311272,1768653100989,-634.18,0.00018082,3]
[402311273,1768653100999,-1429.84,0.00018082,3]
[402311274,1768653101010,-500.0,0.00018082,3]
[402311275,1768653101021,-500.0,0.00018082,3]
[402311276,1768653101032,-500.0,0.00018082,3]
[402311277,1768653101042,-500.0,0.00018082,3]
[402311278,1768653101051,-500.0,0.00018082,3]
[402311279,1768653101061,-1003.52,0.00018082,3]
[402311280,1768653101070,-565.41,0.00018082,3]
[402311281,1768653101080,-500.0,0.00018082,3]
[402311282,1768653101089,-2006.9,0.00018082,3]
[402311283,1768653101099,-1200.0,0.00018082,2]
[402311284,1768653101109,-3788.27,0.00018082,3]
[402311285,1768653101119,-500.0,0.00018082,2]
[402311286,1768653101132,-496.47127164,0.0001821,2]
[402311287,1768653101142,-2398.4119403,0.0001821,2]
[402311288,1768653101152,-33454.72959,0.0001821,2]
[402311289,1768653101161,-800.0,0.00018223,2]
[402311290,1768653101170,-800.0,0.00018227,2]
[402311291,1768653101180,-8077.22640448,0.00018228,2]
[402311292,1768653101191,-800.0,0.00018297,2]
[402311293,1768653101200,-800.0,0.00018324,2]
[402311294,1768653101210,-500.0,0.00018356,3]
[402311295,1768653101219,-205.70334836,0.00018356,3]
[402311296,1768653101227,-416.71,0.00018356,3]
[402311297,1768653101237,-500.0,0.00018356,3]
[402311298,1768653101247,-940.35,0.00018356,3]
[402311299,1768653101258,-904.31,0.00018356,3]
[402311300,1768653101267,-500.0,0.00018356,3]
[402311301,1768653101277,-1000.0,0.00018356,2]
[402311302,1768653101286,-500.0,0.00018356,3]
[402311303,1768653101296,-500.0,0.00018356,3]
[402311304,1768653101306,-557.26,0.00018356,3]
[402311305,1768653101315,-500.0,0.00018356,3]
[402311306,1768653101325,-524.86,0.00018356,3]
[402311307,1768653101334,-500.0,0.00018356,3]
[402311308,1768653101344,-953.58,0.00018356,3]
[402311309,1768653101353,-500.0,0.00018356,3]
[402311310,1768653101363,-587.21,0.00018356,3]
[402311311,1768653101372,-510.56,0.00018356,3]
[402311312,1768653101382,-1541.12,0.00018356,3]
[402311313,1768653101391,-1016.13,0.00018356,3]
[402311314,1768653101401,-500.0,0.00018356,3]
[402311315,1768653101410,-500.0,0.00018356,3]
[402311316,1768653101420,-500.0,0.00018356,3]
[402311317,1768653101429,-500.0,0.00018356,3]
[402311318,1768653101439,-500.0,0.00018356,3]
[402311319,1768653101450,-1289.75,0.00018356,3]
[402311320,1768653101460,-500.55,0.00018356,3]
[402311321,1768653101470,-500.0,0.00018356,3]
[402311322,1768653101480,-500.0,0.00018356,3]
[402311323,1768653101490,-667.06,0.00018356,3]
[402311324,1768653101499,-500.0,0.00018356,3]
[402311325,1768653101509,-500.0,0.00018356,3]
[402311326,1768653101519,-284.7821744,0.00018356,3]
[402311327,1768653101528,-500.0,0.00018356,3]
[402311328,1768653101538,-500.0,0.00018356,3]
[402311329,1768653101548,-500.0,0.00018356,3]
[402311330,1768653101558,-1507.14,0.00018356,3]
[402311331,1768653101567,-500.0,0.00018356,3]
[402311332,1768653101577,-500.0,0.00018356,3]
[402311333,1768653101586,-740.56,0.00018356,3]
[402311334,1768653101596,-500.0,0.00018356,3]
[402311335,1768653101605,-681.74,0.00018356,3]
[402311336,1768653101615,-500.0,0.00018356,3]
[402311337,1768653101625,-915.36,0.00018356,3]
[402311338,1768653101635,-544.01,0.00018356,3]
[402311339,1768653101644,-500.0,0.00018356,3]
[402311340,1768653101654,-1262.64,0.00018356,3]
[402311341,1768653101663,-500.0,0.00018356,3]
[402311342,1768653101674,-500.0,0.00018356,3]
[402311343,1768653101683,-500.0,0.00018356,3]
[402311344,1768653101694,-850.25,0.00018356,3]
[402311345,1768653101704,-500.0,0.00018356,3]
[402311346,1768653101715,-649.2,0.00018356,3]
[402311347,1768653101728,-784.71,0.00018356,3]
[402311348,1768653101738,-825.73,0.00018356,3]
[402311349,1768653101749,-609.64,0.00018356,3]
[402311350,1768653101759,-500.0,0.00018356,3]
[402311351,1768653101769,-534.26411861,0.00018356,3]
[402311352,1768653101778,-904.51,0.00018356,3]
[402311353,1768653101788,-500.0,0.00018356,3]
[402311354,1768653101798,-995.62,0.00018356,3]
[402311355,1768653101808,-500.0,0.00018356,3]
[402311356,1768653101818,-875.03,0.00018356,3]
[402311357,1768653101828,-582.69,0.00018356,3]
[402311358,1768653101838,-500.0,0.00018356,3]
[402311359,1768653101847,-848.03,0.00018356,3]
[402311360,1768653101856,-500.0,0.00018356,3]
[402311361,1768653101866,-500.0,0.00018356,3]
[402311362,1768653101875,-500.0,0.00018356,3]
[402311363,1768653101884,-500.0,0.00018356,3]
[402311364,1768653101894,-500.0,0.00018356,3]
[402311365,1768653101904,-540.82,0.00018356,3]
[402311366,1768653101914,-500.0,0.00018356,3]
[402311367,1768653101923,-500.0,0.00018356,3]
[402311368,1768653101933,-500.0,0.00018356,3]
[402311369,1768653101943,-1286.45,0.00018356,3]
[402311370,1768653101953,-1184.11,0.00018356,3]
[402311371,1768653101962,-2338.27,0.00018356,3]
[402311372,1768653101972,-500.0,0.00018356,3]
[402311373,1768653101982,-500.0,0.00018356,3]
[402311374,1768653101991,-1074.96,0.00018356,3]
[402311375,1768653102001,-500.0,0.00018356,3]
[402311376,1768653102011,-939.95,0.00018356,3]
[402311377,1768653102218,-648.04,0.00018356,3]
[402311378,1768653102235,-1305.23,0.00018356,3]
[402311379,1768653102244,-713.54,0.00018356,3]
[402311380,1768653102254,-489.41292271,0.00018356,3]
[402311381,1768653102263,-500.0,0.00018356,3]
[402311382,1768653102273,-500.0,0.00018356,3]
[402311383,1768653102284,-500.0,0.00018356,3]
[402311384,1768653102293,-617.87,0.00018356,3]
[402311385,1768653102302,-500.0,0.00018356,3]
[402311386,1768653102311,-500.0,0.00018356,3]
[402311387,1768653102320,-580.8,0.00018356,3]
[402311388,1768653102330,-500.0,0.00018356,3]
[402311389,1768653102339,-797.95,0.00018356,3]
[402311390,1768653102349,-1586.94,0.00018356,3]
[402311391,1768653102359,-500.0,0.00018356,3]
[402311392,1768653102368,-1834.58,0.00018356,3]
[402311393,1768653102378,-500.0,0.00018356,3]
[402311394,1768653102387,-500.0,0.00018356,3]
[402311395,1768653102396,-1542.76,0.00018356,3]
[402311396,1768653102406,-500.0,0.00018356,3]
[402311397,1768653102415,-500.0,0.00018356,3]
[402311398,1768653102425,-960.56,0.00018356,3]
[402311399,1768653102435,-500.0,0.00018356,3]
[402311400,1768653102446,-500.0,0.00018356,3]
[402311401,1768653102456,-746.14,0.00018356,3]
[402311402,1768653102467,-519.01,0.00018356,3]
[402311403,1768653102477,-500.0,0.00018356,3]
[402311404,1768653102487,-500.0,0.00018356,3]
[402311405,1768653102496,-2140.55,0.00018356,3]
[402311406,1768653102506,-500.0,0.00018356,3]
[402311407,1768653102515,-500.0,0.00018356,3]
[402311408,1768653102525,-500.0,0.00018356,3]
[402311409,1768653102534,-500.0,0.00018356,3]
[402311410,1768653102544,-500.0,0.00018356,3]
[402311411,1768653102553,-1225.34,0.00018356,3]
[402311412,1768653102562,-1577.53,0.00018356,3]
[402311413,1768653102571,-500.0,0.00018356,3]
[402311414,1768653102581,-532.65564852,0.00018356,2]
[402311415,1768653102591,-500.0,0.00018356,3]
[402311416,1768653102600,-500.0,0.00018356,3]
[402311417,1768653102610,-500.0,0.00018356,3]
[402311418,1768653102618,-500.0,0.00018356,3]
[402311419,1768653102626,-500.0,0.00018356,3]
[402311420,1768653102634,-500.0,0.00018356,3]
[402311421,1768653102644,-500.0,0.00018356,3]
[402311422,1768653102652,-500.0,0.00018356,3]
[402311423,1768653102661,-500.0,0.00018356,3]
[402311424,1768653102670,-504.11,0.00018356,3]
[402311425,1768653102680,-500.0,0.00018356,3]
[402311426,1768653102690,-500.0,0.00018356,3]
[402311427,1768653102700,-540.84,0.00018356,3]
[402311428,1768653102710,-777.63,0.00018356,3]
[402311429,1768653102721,-500.0,0.00018356,3]
[402311430,1768653102732,-1359.96,0.00018356,3]
[402311431,1768653102741,-645.08,0.00018356,3]
[402311432,1768653102751,-500.0,0.00018356,3]
[402311433,1768653102760,-500.0,0.00018356,3]
[402311434,1768653102770,-942.63,0.00018356,3]
[402311435,1768653102780,-500.0,0.00018356,3]
[402311436,1768653102790,-496.95581154,0.00018356,3]
[402311437,1768653102800,-500.0,0.00018356,3]
[402311438,1768653102809,-1132.01,0.00018356,3]
[402311439,1768653102819,-500.0,0.00018356,3]
[402311440,1768653102828,-500.0,0.00018356,3]
[402311441,1768653102838,-782.75,0.00018356,3]
[402311442,1768653102848,-500.0,0.00018356,3]
[402311443,1768653102857,-500.0,0.00018356,3]
[402311444,1768653102867,-500.0,0.00018356,3]
[402311445,1768653102877,-693.7,0.00018356,3]
[402311446,1768653102887,-500.0,0.00018356,3]
[402311447,1768653102897,-597.8010965,0.00018356,3]
[402311448,1768653102906,-500.0,0.00018356,3]
[402311449,1768653102916,-500.0,0.00018356,3]
[402311450,1768653102926,-500.0,0.00018356,3]
[402311451,1768653102936,-500.0,0.00018356,3]
[402311452,1768653102945,-1859.94,0.00018356,3]
[402311453,1768653102955,-1210.81,0.00018356,3]
[402311454,1768653102964,-1568.17,0.00018356,3]
[402311455,1768653102973,-500.0,0.00018356,3]
[402311456,1768653102983,-500.0,0.00018356,3]
[402311457,1768653102992,-500.0,0.00018356,3]
[402311458,1768653103001,-1211.41,0.00018356,3]
[402311459,1768653103011,-1472.9,0.00018356,3]
[402311460,1768653103020,-931.1,0.00018356,3]
[402311461,1768653103030,-408.02411447,0.00018356,3]
[402311462,1768653103039,-500.0,0.00018356,3]
[402311463,1768653103048,-1240.14,0.00018356,3]
[402311464,1768653103057,-582.22,0.00018356,3]
[402311465,1768653103067,-500.0,0.00018356,3]
[402311466,1768653103076,-784.75,0.00018356,3]
[402311467,1768653103085,-775.14,0.00018356,3]
[402311468,1768653103095,-500.0,0.00018356,3]
[402311469,1768653103104,-500.0,0.00018356,3]
[402311470,1768653103114,-500.0,0.00018356,3]
[402311471,1768653103123,-842.12,0.00018356,3]
[402311472,1768653103132,-500.0,0.00018356,3]
[402311473,1768653103141,-500.0,0.00018356,3]
[402311474,1768653103151,-923.41,0.00018356,3]
[402311475,1768653103160,-500.0,0.00018356,3]
[402311476,1768653103170,-500.0,0.00018356,3]
[402311477,1768653103179,-1782.4,0.00018356,3]
[402311478,1768653103189,-552.83,0.00018356,3]
[402311479,1768653103198,-500.0,0.00018356,3]
[402311480,1768653103208,-500.0,0.00018356,3]
[402311481,1768653103217,-500.0,0.00018356,3]
[402311482,1768653103226,-500.0,0.00018356,3]
[402311483,1768653103235,-500.0,0.00018356,3]
[402311484,1768653103244,-500.0,0.00018356,3]
[402311485,1768653103254,-518.59,0.00018356,3]
[402311486,1768653103264,-721.62,0.00018356,3]
[402311487,1768653103274,-1040.39,0.00018356,3]
[402311488,1768653103283,-500.0,0.00018356,3]
[402311489,1768653103293,-2007.96,0.00018356,3]
[402311490,1768653103302,-574.44,0.00018356,3]
[402311491,1768653103312,-1158.63,0.00018356,3]
[402311492,1768653103321,-500.0,0.00018356,3]
[402311493,1768653103330,-533.25,0.00018356,3]
[402311494,1768653103339,-500.0,0.00018356,3]
[402311495,1768653103349,-500.0,0.00018356,3]
[402311496,1768653103358,-1776.82,0.00018356,3]
[402311497,1768653103367,-706.91,0.00018356,3]
[402311498,1768653103376,-781.61,0.00018356,3]
[402311499,1768653103386,-500.0,0.00018356,3]
[402311500,1768653103395,-617.92,0.00018356,3]